fUSD/lending_fUSD_20250818
["ID","MTS","AMOUNT","RATE_DAILY","PERIOD"]
[380043312,1755501033794,-160.1023631,0.00010922,2]
[380043313,1755501033803,-160.1023631,0.00010945,2]
[380043314,1755501033814,-900.0,0.00010959,2]
[380043315,1755501033828,-900.0,0.00010959,2]
[380043316,1755501033838,-900.0,0.00010959,2]
[380043317,1755501033848,-900.0,0.00010959,2]
[380043318,1755501033858,-900.0,0.00010959,2]
[380043319,1755501033868,-900.0,0.00010959,2]
[380043320,1755501033878,-900.0,0.00010959,2]
[380043321,1755501033887,-900.0,0.00010959,2]
[380043322,1755501033897,-900.0,0.00010959,2]
[380043323,1755501033907,-900.0,0.00010959,2]
[380043324,1755501033916,-900.0,0.00010959,2]
[380043325,1755501033926,-900.0,0.00010959,2]
[380043326,1755501033935,-900.0,0.00010959,2]
[380043327,1755501033945,-900.0,0.00010959,2]
[380043328,1755501033955,-900.0,0.00010959,2]
[380043329,1755501033964,-900.0,0.00010959,2]
[380043330,1755501033974,-150.0,0.00010959,2]
[380043331,1755501033984,-160.1023631,0.00010967,2]
[380043332,1755501033993,-500.0,0.00010973,2]
[380043333,1755501034003,-500.0,0.00010973,2]
[380043334,1755501034013,-500.0,0.00010973,2]
[380043335,1755501034022,-432.52438624,0.00010973,2]
[380043336,1755501034032,-500.0,0.00010973,2]
[380043337,1755501034042,-567.3102294,0.00010973,2]
[380043338,1755501034051,-500.0,0.00010973,2]
[380043339,1755501034061,-500.0,0.00010973,2]
[380043340,1755501034072,-500.0,0.00010973,2]
[380043341,1755501034082,-500.67120204,0.00010973,2]
[380043342,1755501034092,-500.0,0.00010973,2]
[380043343,1755501034102,-500.0,0.00010973,2]
[380043344,1755501034112,-648.45802481,0.00010973,2]
[380043345,1755501034122,-500.0,0.00010973,2]
[380043346,1755501034132,-500.0,0.00010973,2]
[380043347,1755501034142,-160.1023631,0.0001099,2]
[380043348,1755501034151,-2000.0,0.00010999,2]
[380043349,1755501034161,-2000.0,0.00010999,2]
[380043350,1755501034171,-150.0,0.00010999,2]
[380043351,1755501034180,-14218.2290838,0.00010999,2]
[380043352,1755501034189,-1000.0,0.00010999,2]
[380043353,1755501034203,-8110.4212594,0.00010999,2]
[380043354,1755501034219,-1000.0,0.00010999,2]
[380043355,1755501034229,-672.0,0.00010999,2]
[380043356,1755501034238,-2000.0,0.00010999,2]
[380043357,1755501034248,-2000.0,0.00010999,2]
[380043358,1755501034258,-2000.0,0.00010999,2]
[380043359,1755501034267,-2000.0,0.00010999,2]
[380043360,1755501034277,-429.0,0.00010999,2]
[380043361,1755501034287,-2000.0,0.00010999,2]
[380043362,1755501034297,-909.00687303,0.00010999,2]
[380043363,1755501034310,-1090.99312697,0.00010999,2]
[380043364,1755501034319,-2000.0,0.00010999,2]
[380043365,1755501034329,-2000.0,0.00010999,2]
[380043366,1755501034339,-180.90447798,0.00010999,2]
[380043410,1755501038902,-180.91276811,9.876e-05,2]
[380043411,1755501038912,-174.96313527,9.876e-05,2]
[380043412,1755501038923,-18.67734062,9.876e-05,2]
[380043413,1755501038932,-1819.09552202,0.00010999,2]
[380043414,1755501038941,-2000.0,0.00010999,2]
[380043415,1755501038951,-2000.0,0.00010999,2]
[380043416,1755501038962,-2000.0,0.00010999,2]
[380043417,1755501038973,-2000.0,0.00010999,2]
[380043418,1755501038982,-2000.0,0.00010999,2]
[380043419,1755501038991,-2000.0,0.00010999,2]
[380043420,1755501039000,-2000.0,0.00010999,2]
[380043421,1755501039011,-2000.0,0.00010999,2]
[380043422,1755501039020,-918.2,0.00010999,2]
[380043423,1755501039030,-3311.0,0.00010999,2]
[380043424,1755501039041,-1531.0,0.00010999,2]
[380043425,1755501039050,-473.0,0.00010999,2]
[380043426,1755501039060,-500.0,0.00010999,2]
[380043427,1755501039073,-150.0,0.00010999,2]
[380043428,1755501039082,-150.0,0.00010999,2]
[380043429,1755501039091,-150.0,0.00010999,2]
[380043430,1755501039100,-150.0,0.00010999,2]
[380043431,1755501039110,-500.0,0.00010999,2]
[380043432,1755501039121,-150.0,0.00010999,2]
[380043433,1755501039131,-150.0,0.00010999,2]
[380043434,1755501039142,-538.0,0.00010999,2]
[380043435,1755501039157,-1000.0,0.00010999,2]
[380043436,1755501039166,-500.0,0.00010999,2]
[380043437,1755501039175,-997.0,0.00010999,2]
[380043438,1755501039184,-4000.0,0.00010999,2]
[380043439,1755501039193,-151.0,0.00010999,2]
[380043440,1755501039202,-10000.0,0.00011,2]
[380043441,1755501039211,-126037.10903209,0.00011,2]
[380043442,1755501039268,-8809257.10753608,0.00011,2]
[380043443,1755501039278,-436864.39,0.00011,2]
[380043444,1755501039287,-150.0,0.00011,2]
[380043445,1755501039296,-500.0,0.00011,2]
[380043446,1755501039305,-150.0,0.00011,2]
[380043447,1755501039315,-500.0,0.00011,2]
[380043448,1755501039325,-251.71510553,0.00011,2]
[380043449,1755501039334,-150.0,0.00011,2]
[380043450,1755501039345,-500.0,0.00011,2]
[380043451,1755501039357,-150.0,0.00011,2]
[380043452,1755501039370,-272032.70727027,0.00011,2]
[380043453,1755501039383,-151.0,0.00011,2]
[380043454,1755501039392,-151.0,0.00011,2]
[380043455,1755501039401,-289.29330142,0.00011,2]
[380043456,1755501039411,-160.1023631,0.00011012,2]
[380043457,1755501039420,-255.0,0.00011045,2]
[380043458,1755501039430,-150.0,0.00011088,2]
[380043459,1755501039440,-789.29999654,0.00011088,2]
[380043460,1755501039450,-1005.97058383,0.00011088,2]
[380043461,1755501039461,-1222.64117111,0.00011088,2]
[380043462,1755501039471,-1439.3117584,0.00011088,2]
[380043463,1755501039480,-1655.98234568,0.00011088,2]
[380043464,1755501039490,-1872.65293297,0.00011089,2]
[380043465,1755501039499,-2089.32352025,0.00011089,2]
[380043466,1755501039509,-2305.99410754,0.00011089,2]
[380043467,1755501039519,-2522.66469483,0.00011089,2]
[380043468,1755501039528,-260590.33651837,0.00011099,2]
[380043469,1755501039538,-210.07952158,0.00011111,2]
[380043470,1755501039547,-169.48,0.00011124,2]
[380043471,1755501039557,-202.4,0.00011255,2]
[380043472,1755501039566,-213.24803245,0.00011262,2]
[380043473,1755501039576,-672.0,0.00011273,2]
[380043474,1755501039585,-429.0,0.00011273,2]
[380043476,1755501039595,-3311.0,0.00011273,2]
[380043478,1755501039604,-1531.0,0.00011273,2]
[380043479,1755501039614,-473.0,0.00011273,2]
[380043480,1755501039623,-500.0,0.00011273,2]
[380043481,1755501039633,-150.0,0.00011273,2]
[380043482,1755501039643,-150.86263942,0.00011273,2]
[380043483,1755501039652,-150.0,0.00011273,2]
[380043484,1755501039661,-500.0,0.00011273,2]
[380043485,1755501039671,-150.0,0.00011273,2]
[380043486,1755501039681,-538.0,0.00011273,2]
[380043487,1755501039690,-500.0,0.00011273,2]
[380043488,1755501039699,-997.0,0.00011273,2]
[380043489,1755501039709,-4000.0,0.00011273,2]
[380043490,1755501039719,-150.0,0.00011274,2]
[380043491,1755501039728,-500.0,0.00011274,2]
[380043492,1755501039737,-269.64252954,0.00011274,2]
[380043493,1755501039747,-500.0,0.00011274,2]
[380043494,1755501039757,-150.0,0.00011274,2]
[380043495,1755501039767,-500.0,0.00011274,2]
[380043496,1755501039776,-150.0,0.00011274,2]
[380043497,1755501039785,-720.48,0.00011311,2]
[380043498,1755501039794,-414.07,0.00011311,2]
[380043499,1755501039804,-408.15,0.00011311,2]
[380043500,1755501039813,-624.86,0.00011311,2]
[380043501,1755501039825,-165.94,0.00011311,2]
[380043502,1755501039834,-165.94,0.00011311,2]
[380043503,1755501039843,-165.94,0.00011311,2]
[380043504,1755501039853,-408.15,0.00011311,2]
[380043505,1755501039863,-408.21,0.00011311,2]
[380043506,1755501039872,-150.0,0.00011318,2]
[380043507,1755501039882,-672.56,0.00011323,2]
[380043508,1755501039892,-1000.0,0.00011327,2]
[380043509,1755501039902,-4424.0,0.00011423,2]
[380043510,1755501039912,-4923.41751996,0.00011455,2]
[380043511,1755501039921,-2751.0,0.00011507,2]
[380043512,1755501039931,-1000.0,0.00011521,2]
[380043513,1755501039940,-1000.0,0.00011521,2]
[380043514,1755501039950,-1000.0,0.00011521,2]
[380043515,1755501039960,-1000.80308435,0.00011521,2]
[380043516,1755501039970,-1000.0,0.00011521,2]
[380043517,1755501039979,-1000.0,0.00011521,2]
[380043519,1755501039989,-1000.0,0.00011521,2]
[380043521,1755501039999,-501.32047253,0.00011521,2]
[380043523,1755501040008,-1000.0,0.00011521,2]
[380043525,1755501040017,-1000.0,0.00011521,2]
[380043527,1755501040026,-1000.0,0.00011521,2]
[380043529,1755501040035,-500.0,0.00011521,2]
[380043531,1755501040045,-500.0,0.00011521,2]
[380043533,1755501040054,-500.0,0.00011521,2]
[380043535,1755501040063,-284.18670159,0.00011521,2]
[380043537,1755501040074,-500.0,0.00011521,2]
[380043540,1755501040093,-150.0,0.00011521,2]
[380043541,1755501040104,-500.0,0.00011521,2]
[380043542,1755501040113,-204.64044887,0.00011521,2]
[380043543,1755501040123,-214.33516346,0.00011521,2]
[380043544,1755501040460,-150.0,0.00011521,2]
[380043545,1755501040533,-500.0,0.00011521,2]
[380043546,1755501040543,-672.0,0.00011547,2]
[380043547,1755501040553,-429.0,0.00011547,2]
[380043548,1755501040563,-3311.0,0.00011547,2]
[380043549,1755501040574,-1531.0,0.00011547,2]
[380043550,1755501040584,-473.0,0.00011547,2]
[380043551,1755501040594,-500.0,0.00011547,2]
[380043552,1755501040603,-258.31843497,0.00011547,2]
[380043553,1755501040612,-150.0,0.00011547,2]
[380043554,1755501040621,-500.0,0.00011547,2]
[380043555,1755501040631,-150.0,0.00011547,2]
[380043556,1755501040642,-538.0,0.00011547,2]
[380043557,1755501040651,-500.0,0.00011547,2]
[380043558,1755501040660,-997.0,0.00011547,2]
[380043559,1755501040672,-4000.0,0.00011547,2]
[380043560,1755501040681,-150.0,0.00011548,2]
[380043561,1755501040690,-212.54237001,0.00011548,2]
[380043562,1755501040699,-500.0,0.00011548,2]
[380043563,1755501040708,-150.0,0.00011548,2]
[380043564,1755501040718,-629.59873659,0.00011548,2]
[380043565,1755501040727,-150.0,0.0001158,2]
[380043566,1755501040737,-2029.0,0.0001165,2]
[380043567,1755501040746,-3371.0,0.0001165,2]
[380043568,1755501040756,-1255.476,0.0001165,2]
[380043569,1755501040765,-600.789,0.0001165,2]
[380043570,1755501040774,-1323.375,0.0001165,2]
[380043571,1755501040789,-894.807,0.0001165,2]
[380043572,1755501040799,-1173.036,0.0001165,2]
[380043573,1755501040808,-6090.0,0.0001165,2]
[380043574,1755501040818,-2235.0,0.0001165,2]
[380043575,1755501040831,-4151.0,0.0001165,2]
[380043576,1755501040840,-21495.0,0.0001165,2]
[380043577,1755501040851,-304.92,0.00011781,2]
[380043578,1755501040863,-500.0,0.00011795,2]
[380043579,1755501040872,-571.36324721,0.00011795,2]
[380043580,1755501040882,-500.0,0.00011795,2]
[380043581,1755501040891,-500.0,0.00011795,2]
[380043582,1755501040901,-500.0,0.00011795,2]
[380043583,1755501040911,-150.0,0.00011795,2]
[380043584,1755501040920,-500.0,0.00011795,2]
[380043585,1755501040930,-184.58107658,0.00011799,2]
[380043586,1755501040947,-672.0,0.00011821,2]
[380043587,1755501040991,-429.0,0.00011821,2]
[380043588,1755501041032,-3311.0,0.00011821,2]
[380043589,1755501041060,-1531.0,0.00011821,2]
[380043590,1755501041071,-473.0,0.00011821,2]
[380043591,1755501041083,-500.0,0.00011821,2]
[380043592,1755501041092,-158.44741976,0.00011821,2]
[380043593,1755501041103,-500.0,0.00011821,2]
[380043594,1755501041113,-150.0,0.00011821,2]
[380043595,1755501041123,-538.0,0.00011821,2]
[380043596,1755501041132,-500.0,0.00011821,2]
[380043597,1755501041142,-997.0,0.00011821,2]
[380043598,1755501041151,-4000.0,0.00011821,2]
[380043599,1755501041161,-150.0,0.00011822,2]
[380043600,1755501041171,-500.0,0.00011822,2]
[380043601,1755501041180,-202.27324428,0.00011822,2]
[380043602,1755501041189,-316.9,0.00011865,2]
[380043603,1755501041198,-348.4992759,0.0001188,2]
[380043604,1755501041208,-2351.0,0.00011951,2]
[380043605,1755501041217,-587.0,0.00011951,2]
[380043606,1755501041226,-1596.98,0.00011987,2]
[380043607,1755501041235,-200.0,0.00012,2]
[380043608,1755501041244,-6686.84298005,0.00012,3]
[380043609,1755501041255,-250.0,0.0001204,2]
[380043610,1755501041264,-251.0,0.0001204,2]
[380043611,1755501041274,-200.0,0.0001204,2]
[380043612,1755501041283,-200.0,0.0001204,2]
[380043613,1755501041292,-204.0,0.0001204,2]
[380043614,1755501041302,-195.482,0.0001204,2]
[380043615,1755501041311,-195.589,0.0001204,2]
[380043616,1755501041321,-198.053,0.0001204,2]
[380043617,1755501041331,-203.243,0.0001204,2]
[380043618,1755501041340,-250.0,0.0001204,2]
[380043619,1755501041350,-296.394,0.0001204,2]
[380043620,1755501041361,-245.888,0.0001204,2]
[380043621,1755501041371,-186.31,0.0001204,2]
[380043622,1755501041380,-204.955,0.0001204,2]
[380043623,1755501041390,-206.999,0.0001204,2]
[380043624,1755501041399,-159.915,0.0001204,2]
[380043625,1755501041409,-250.0,0.0001204,2]
[380043626,1755501041418,-154.0,0.0001204,2]
[380043627,1755501041427,-209.961,0.0001204,2]
[380043628,1755501041437,-157.387,0.0001204,2]
[380043629,1755501041447,-1869.43,0.00012055,2]
[380043630,1755501041457,-1500.0,0.00012068,2]
[380043631,1755501041467,-341.93999063,0.00012068,2]
[380043632,1755501041477,-1000.0,0.00012068,2]
[380043633,1755501041486,-1500.0,0.00012068,2]
[380043634,1755501041495,-1500.0,0.00012068,2]
[380043635,1755501041504,-1500.0,0.00012068,2]
[380043636,1755501041514,-1500.0,0.00012068,2]
[380043637,1755501041523,-1533.613245,0.00012068,2]
[380043638,1755501041533,-200.7024043,0.00012068,2]
[380043639,1755501041543,-500.0,0.00012069,2]
[380043640,1755501041552,-500.0,0.00012069,2]
[380043641,1755501041562,-500.0,0.00012069,2]
[380043642,1755501041571,-620.08162908,0.00012069,2]
[380043643,1755501041581,-150.0,0.00012069,2]
[380043644,1755501041590,-500.0,0.00012069,2]
[380043645,1755501041599,-672.0,0.00012095,2]
[380043646,1755501041608,-429.0,0.00012095,2]
[380043647,1755501041620,-3311.0,0.00012095,2]
[380043648,1755501041630,-1531.0,0.00012095,2]
[380043649,1755501041640,-473.0,0.00012095,2]
[380043650,1755501041650,-411.99813359,0.00012095,2]
[380043651,1755501041661,-466.46146354,0.00012095,2]
[380043652,1755501041675,-250.0,0.00012095,2]
[380043653,1755501041684,-538.0,0.00012095,2]
[380043654,1755501041694,-500.0,0.00012095,2]
[380043655,1755501041703,-997.0,0.00012095,2]
[380043656,1755501041713,-4000.0,0.00012095,2]
[380043657,1755501041722,-150.0,0.00012096,2]
[380043658,1755501041731,-500.0,0.00012096,2]
[380043659,1755501041741,-175.89,0.00012097,2]
[380043660,1755501041750,-433.0,0.00012149,2]
[380043661,1755501041760,-2373.07414013,0.0001215,2]
[380043662,1755501041770,-222.29401043,0.00012167,2]
[380043663,1755501041779,-150.0,0.00012188,2]
[380043664,1755501041788,-811.28285768,0.00012188,2]
[380043665,1755501041798,-1033.98795586,0.00012188,2]
[380043666,1755501041807,-1256.69305405,0.00012189,2]
[380043667,1755501041816,-1479.39815224,0.00012189,2]
[380043668,1755501041829,-1702.10325042,0.00012189,2]
[380043669,1755501041838,-1924.80834861,0.00012189,2]
[380043670,1755501041849,-2147.51344679,0.0001219,2]
[380043671,1755501041859,-2370.21854498,0.0001219,2]
[380043672,1755501041870,-2592.92364316,0.0001219,2]
[380043673,1755501041879,-21000.94,0.000122,2]
[380043674,1755501041889,-36595.0,0.0001222,2]
[380043675,1755501041898,-500.0,0.00012301,2]
[380043676,1755501041908,-500.0,0.00012343,2]
[380043677,1755501041918,-500.0,0.00012343,2]
[380043678,1755501041928,-500.0,0.00012343,2]
[380043679,1755501041937,-150.0,0.00012343,2]
[380043680,1755501041948,-500.0,0.00012343,2]
[380043681,1755501041958,-672.0,0.00012369,2]
[380043682,1755501041968,-429.0,0.00012369,2]
[380043683,1755501041978,-3311.0,0.00012369,2]
[380043684,1755501041987,-1531.0,0.00012369,2]
[380043685,1755501041997,-473.0,0.00012369,2]
[380043686,1755501042007,-538.0,0.00012369,2]
[380043687,1755501042016,-997.0,0.00012369,2]
[380043688,1755501042027,-1233.16186344,0.00012369,2]
[380043689,1755501042038,-250.0,0.0001237,2]
[380043690,1755501042048,-500.0,0.0001237,2]
[380043691,1755501042057,-436864.39,0.000124,2]
[380043692,1755501042068,-847.97,0.00012476,2]
[380043693,1755501042078,-936.84,0.00012476,2]
[380043694,1755501042087,-798.49,0.00012476,2]
[380043695,1755501042097,-798.49,0.00012476,2]
[380043696,1755501042106,-170.54,0.00012479,2]
[380043697,1755501042115,-468.71,0.00012488,2]
[380043698,1755501042127,-468.62,0.00012488,2]
[380043699,1755501042137,-1000.0,0.000125,2]
[380043700,1755501042147,-253.53206818,0.00012523,2]
[380043701,1755501042159,-207.0,0.0001258,2]
[380043702,1755501042169,-672.56,0.00012582,2]
[380043703,1755501042178,-1000.0,0.00012586,2]
[380043704,1755501042187,-1756.23764456,0.00012603,2]
[380043705,1755501042197,-1438.37625615,0.00012616,2]
[380043706,1755501042207,-2000.0,0.00012616,2]
[380043707,1755501042217,-506.03200363,0.00012616,2]
[380043708,1755501042226,-958.81343577,0.00012616,2]
[380043709,1755501042236,-2000.0,0.00012616,2]
[380043710,1755501042246,-500.0,0.00012617,2]
[380043711,1755501042255,-500.0,0.00012617,2]
[380043712,1755501042265,-500.0,0.00012617,2]
[380043713,1755501042275,-160.63576609,0.00012617,2]
[380043714,1755501042284,-507.52391232,0.00012617,2]
[380043715,1755501042293,-672.0,0.00012643,2]
[380043716,1755501042303,-429.0,0.00012643,2]
[380043717,1755501042313,-3311.0,0.00012643,2]
[380043718,1755501042323,-1531.0,0.00012643,2]
[380043719,1755501042334,-473.0,0.00012643,2]
[380043720,1755501042343,-538.0,0.00012643,2]
[380043721,1755501042352,-997.0,0.00012643,2]
[380043722,1755501042362,-500.0,0.00012644,2]
[380043723,1755501042372,-1756.23764456,0.00012658,2]
[380043724,1755501042382,-184.58107658,0.00012699,2]
[380043725,1755501042392,-1000.0,0.000127,2]
[380043726,1755501042402,-1756.23764456,0.00012712,2]
[380043727,1755501042412,-207.0,0.0001276,2]
[380043728,1755501042422,-1756.23764456,0.00012767,2]
[380043729,1755501042432,-150.0,0.0001277,2]
[380043730,1755501042442,-1000.0,0.000128,2]
[380043731,1755501042452,-1756.23764456,0.00012822,2]
[380043732,1755501042463,-1756.23764456,0.00012849,2]
[380043733,1755501042473,-169.48,0.00012862,2]
[380043734,1755501042483,-255.91202351,0.00012891,2]
[380043735,1755501042493,-452.44620072,0.00012891,2]
[380043736,1755501042503,-500.0,0.00012891,2]
[380043738,1755501042513,-1000.0,0.000129,2]
[380043739,1755501042523,-1756.23764456,0.00012904,2]
[380043740,1755501042532,-300.0,0.00012904,2]
[380043741,1755501042542,-18135.44,0.00012906,6]
[380043742,1755501042551,-48767.8,0.00012906,6]
[380043743,1755501042561,-23838.17,0.00012906,6]
[380043744,1755501042572,-672.0,0.00012917,2]
[380043746,1755501042581,-429.0,0.00012917,2]
[380043748,1755501042591,-3311.0,0.00012917,2]
[380043750,1755501042600,-1531.0,0.00012917,2]
[380043752,1755501042609,-473.0,0.00012917,2]
[380043754,1755501042619,-538.0,0.00012917,2]
[380043756,1755501042629,-997.0,0.00012917,2]
[380043758,1755501042640,-366.11593967,0.00012918,2]
[380043760,1755501042651,-207.0,0.0001294,2]
[380043762,1755501042661,-5058.61541251,0.00012946,2]
[380043764,1755501042671,-1756.23764456,0.00012959,2]
[380043766,1755501042681,-2706.0,0.00012982,2]
[380043768,1755501042690,-218008.32272144,0.00013,2]
[380043769,1755501042699,-472.68698398,0.00013,2]
[380043770,1755501042708,-2706.0,0.00013013,2]
[380043771,1755501042717,-1756.23764456,0.00013014,2]
[380043772,1755501042727,-170.91,0.00013025,2]
[380043773,1755501042737,-316.9,0.00013052,2]
[380043774,1755501042746,-1756.23764456,0.00013068,2]
[380043775,1755501042756,-2706.0,0.00013073,2]
[380043776,1755501042766,-481.7134784,0.0001308,2]
[380043777,1755501042775,-255.0,0.0001308,2]
[380043778,1755501042785,-255.0,0.0001308,2]
[380043779,1755501042794,-255.0,0.0001308,2]
[380043780,1755501042805,-358.99811627,0.0001308,2]
[380043781,1755501042814,-1000.0,0.000131,2]
[380043782,1755501042824,-207.0,0.0001312,2]
[380043783,1755501042837,-1756.23764456,0.00013123,2]
[380043784,1755501042846,-2706.0,0.00013142,2]
[380043785,1755501042855,-823.0,0.00013146,2]
[380043786,1755501042865,-3292.0,0.00013146,2]
[380043787,1755501042875,-2500.0,0.00013164,2]
[380043788,1755501042884,-541.4358324,0.00013164,2]
[380043789,1755501042894,-513.66664186,0.00013165,2]
[380043790,1755501042905,-1756.23764456,0.00013178,2]
[380043791,1755501042915,-672.0,0.00013191,2]
[380043792,1755501042926,-429.0,0.00013191,2]
[380043793,1755501042935,-3311.0,0.00013191,2]
[380043794,1755501042945,-1531.0,0.00013191,2]
[380043795,1755501042955,-473.0,0.00013191,2]
[380043796,1755501042964,-538.0,0.00013191,2]
[380043797,1755501042974,-997.0,0.00013191,2]
[380043798,1755501042984,-1000.0,0.000132,2]
[380043799,1755501042994,-2706.0,0.00013206,2]
[380043800,1755501043004,-2706.0,0.00013206,2]
[380043801,1755501043013,-2706.0,0.00013234,2]
[380043802,1755501043022,-2706.0,0.00013263,2]
[380043803,1755501043031,-21000.94,0.000133,2]
[380043804,1755501043041,-207.0,0.000133,2]
[380043805,1755501043050,-523640.830487,0.000133,2]
[380043806,1755501043060,-1000.0,0.000133,2]
[380043807,1755501043069,-2706.0,0.00013321,2]
[380043808,1755501043080,-2706.0,0.00013349,2]
[380043809,1755501043089,-456.46403188,0.00013354,2]
[380043810,1755501043099,-1047.81838246,0.00013354,2]
[380043811,1755501043108,-169.48,0.00013354,2]
[380043812,1755501043117,-736.0,0.00013364,2]
[380043813,1755501043126,-24913.43175592,0.00013368,2]
[380043814,1755501043136,-2000.0,0.00013391,2]
[380043815,1755501043145,-200.0,0.00013391,2]
[380043816,1755501043155,-2000.0,0.00013392,2]
[380043817,1755501043164,-200.0,0.00013392,2]
[380043818,1755501043173,-2000.0,0.00013392,2]
[380043819,1755501043182,-2000.0,0.00013392,2]
[380043820,1755501043191,-2000.0,0.00013392,2]
[380043821,1755501043200,-200.0,0.00013392,2]
[380043822,1755501043210,-200.0,0.00013392,2]
[380043823,1755501043219,-783.58857102,0.00013393,2]
[380043824,1755501043228,-13630.4117102,0.00013393,2]
[380043825,1755501043238,-286.00608018,0.00013395,2]
[380043826,1755501043247,-37455.30584779,0.00013396,2]
[380043827,1755501043256,-783.58857102,0.00013397,2]
[380043828,1755501043266,-308003.27816445,0.00013398,2]
[380043829,1755501043275,-13630.4117102,0.00013399,2]
[380043830,1755501043285,-197.07177691,0.00013399,2]
[380043831,1755501043295,-2373.07414013,0.000134,2]
[380043832,1755501043304,-1000.0,0.000134,2]
[380043833,1755501043314,-3980.75716284,0.00013401,2]
[380043834,1755501043326,-3980.75716284,0.00013402,2]
[380043836,1755501043335,-286.00608018,0.00013405,2]
[380043837,1755501043345,-286.00608018,0.00013405,2]
[380043839,1755501043355,-17959.46938351,0.00013406,2]
[380043840,1755501043364,-13630.4117102,0.00013406,2]
[380043841,1755501043373,-197.07177691,0.00013406,2]
[380043842,1755501043384,-17959.46938351,0.00013406,2]
[380043843,1755501043393,-37455.30584779,0.00013415,2]
[380043844,1755501043403,-37455.30584779,0.00013417,2]
[380043845,1755501043412,-197.07177691,0.0001342,2]
[380043846,1755501043421,-197.07177691,0.0001342,2]
[380043847,1755501043431,-3980.75716284,0.0001342,2]
[380043848,1755501043441,-783.58857102,0.00013422,2]
[380043849,1755501043450,-783.58857102,0.00013423,2]
[380043850,1755501043461,-17959.46938351,0.00013423,2]
[380043851,1755501043470,-286.00608018,0.00013424,2]
[380043852,1755501043479,-283.26,0.00013425,2]
[380043853,1755501043489,-12552.07557569,0.00013425,2]
[380043854,1755501043499,-37455.30584779,0.00013426,2]
[380043855,1755501043508,-783.58857102,0.00013427,2]
[380043856,1755501043518,-17959.46938351,0.00013429,2]
[380043857,1755501043528,-2706.0,0.00013429,2]
[380043858,1755501043537,-17959.46938351,0.00013429,2]
[380043859,1755501043547,-1086.3844,0.00013432,2]
[380043860,1755501043557,-13630.4117102,0.00013435,2]
[380043861,1755501043566,-797.99,0.00013435,2]
[380043862,1755501043577,-37455.30584779,0.00013437,2]
[380043863,1755501043586,-37455.30584779,0.0001344,2]
[380043864,1755501043595,-308003.27816445,0.00013444,2]
[380043865,1755501043605,-197.07177691,0.00013445,2]
[380043866,1755501043614,-286.00608018,0.00013447,2]
[380043867,1755501043624,-797.62,0.00013447,2]
[380043868,1755501043633,-170.91,0.00013449,2]
[380043869,1755501043643,-783.58857102,0.00013449,2]
[380043870,1755501043653,-12552.07557569,0.00013451,2]
[380043871,1755501043662,-197.07177691,0.00013456,2]
[380043872,1755501043672,-12552.07557569,0.00013459,2]
[380043873,1755501043683,-13630.4117102,0.0001346,2]
[380043874,1755501043692,-308003.27816445,0.00013462,2]
[380043875,1755501043702,-17959.46938351,0.00013464,2]
[380043876,1755501043711,-672.0,0.00013465,2]
[380043877,1755501043720,-429.0,0.00013465,2]
[380043878,1755501043730,-3311.0,0.00013465,2]
[380043879,1755501043740,-1531.0,0.00013465,2]
[380043880,1755501043750,-473.0,0.00013465,2]
[380043881,1755501043759,-538.0,0.00013465,2]
[380043882,1755501043769,-997.0,0.00013465,2]
[380043883,1755501043778,-3980.75716284,0.00013467,2]